[Event "1st Kallai Gabor Memorial Blitz 2022"]
[Site "Budapest"]
[Date "2022.12.01"]
[Round "5.4"]
[White "Ruck, Robert"]
[Black "Borhy, Marcell"]
[Result "1/2-1/2"]
[ECO "A06"]
[WhiteElo "2537"]
[BlackElo "2407"]
[Annotator "TA"]
[PlyCount "55"]
[EventDate "2022.12.01"]
[EventType "blitz"]
[EventCountry "HUN"]
[SourceTitle "playchess.com"]
[Source "ChessBase"]
[SourceQuality "1"]
[TimeControl "300+3"]

{[%evp 15,55,0,8,7,31,42,48,21,17,19,28,18,19,12,19,27,21,21,20,23,43,46,38,20,27,22,33,21,21,10,22,23,8,0,0,1,11,0,7,0,0,4]} 1. Nf3 {[%emt 0:00:08]} d5 {[%emt 0:00:05]} 2. g3 {[%emt 0:00:01]} Nf6 {[%emt 0:00:14]} 3. Bg2 {[%emt 0:00:02]} e6 {[%emt 0:00:01]} 4. O-O {[%emt 0:00:08]} Be7 {[%emt 0:00:02]} 5. c4 {[%emt 0:00:11]} O-O {[%emt 0:00:02]} 6. b3 {[%emt 0:00:02]} b6 {[%emt 0:00:02]} 7. Bb2 {[%emt 0:00:02]} Bb7 {[%emt 0:00:02]} 8. d4 {[%emt 0:00:03]} Nbd7 {[%emt 0:00:45]} 9. cxd5 {[%emt 0:00:10] E17: Queen's Indian: 4 g3 Bb7 5 Bg2 Be7.} Bxd5 {[%emt 0:00:12]} 10. Nc3 {[%emt 0:00:23]} Bb7 {[%emt 0:00:01]} 11. Rc1 {[%emt 0:00:10] White is slightly better.} c5 {[%emt 0:00:08]} 12. dxc5 {[%emt 0:00:27]} Bxc5 {[%emt 0:00:27]} (12... Nxc5 {simplifies} 13. Qxd8 Rfxd8 14. Ne5 Nd5) 13. Qd3 {[%emt 0:00:58]} Qe7 {[%emt 0:00:19] [#]} 14. Na4 $146 {[%emt 0:00:45]} (14. Ng5 {seems wilder.} Ne5 15. Qb1 Bxg2 16. Kxg2 Rad8 17. Nce4) ({Predecessor:} 14. Ng5 Bxg2 15. Kxg2 h6 16. Nge4 Rfd8 17. Rfd1 Ne5 18. Qa6 Neg4 19. h3 Ne5 20. Nxf6+ Qxf6 {1-0 (74) Bacrot,E (2642)-Al Tarbosh,W (2221) Chess.com INT 2022}) 14... Rfd8 {[%emt 0:00:32][%cal Od7e5]} 15. Nxc5 {[%emt 0:00:07]} Nxc5 {[%emt 0:00:04]} 16. Qe3 {[%emt 0:00:06]} Nd5 {[%emt 0:00:27]} 17. Qd4 {[%emt 0:00:07][%csl Gb2][%cal Rd4g7] [#]} f6 {[%emt 0:00:16]} 18. Ba3 {[%emt 0:00:06][%cal Ra3c5]} Rac8 {[%emt 0:00:08]} 19. Bxc5 {[%emt 0:00:02]} bxc5 {[%emt 0:00:22]} 20. Qb2 {[%emt 0:00:04]} Ba6 {[%emt 0:00:44]} 21. Rfd1 {[%emt 0:00:13]} c4 {[%emt 0:00:12]} 22. bxc4 {[%emt 0:00:10]} Rxc4 {[%emt 0:00:05]} 23. Rxc4 {[%emt 0:00:13]} Bxc4 {[%emt 0:00:01]} 24. Rc1 {[%emt 0:00:02] The position is equal.} Nb6 {[%emt 0:00:10]} 25. Nd4 {[%emt 0:00:04] [#] And now Nc6 would win.} Qd6 {[%emt 0:00:07]} 26. Nc6 {[%emt 0:00:28]} Rd7 {[%emt 0:00:01]} 27. Bf3 {[%emt 0:00:10][%cal Oa2a4]} Bd5 {[%emt 0:00:24] Against a4} 28. Bxd5 {Weighted Error Value: White=0.06 (flawless) /Black=0.06 (flawless)} 1/2-1/2

[Event "1st Kallai Gabor Memorial Blitz 2022"]
[Site "Budapest"]
[Date "2022.12.01"]
[Round "5.5"]
[White "Beliavsky, Alexander G"]
[Black "Gaal, Zsoka"]
[Result "1/2-1/2"]
[ECO "D37"]
[WhiteElo "2487"]
[BlackElo "2286"]
[Annotator "TA"]
[PlyCount "108"]
[EventDate "2022.12.01"]
[EventType "blitz"]
[EventCountry "HUN"]
[SourceTitle "playchess.com"]
[Source "ChessBase"]
[SourceQuality "1"]
[TimeControl "300+3"]

{[%evp 9,108,16,40,34,44,43,43,39,47,36,43,42,51,41,26,-7,14,0,24,26,72,62,136,146,122,131,139,92,95,83,81,75,80,74,82,66,82,65,76,72,84,82,915,127,152,81,81,81,93,4,4,2,5,7,4,0,0,0,0,0,0,0,0,0,0,0,0,0,172,172,172,175,176,171,170,148,156,145,134,104,90,62,104,97,187,89,90,83,82,81,83,0,0,0,0,0,0,0,0,0,0]} 1. d4 {[%emt 0:00:06]} Nf6 {[%emt 0:00:06]} 2. c4 {[%emt 0:00:03]} e6 {[%emt 0:00:01]} 3. Nf3 {[%emt 0:00:02]} d5 {[%emt 0:00:01]} 4. Nc3 {[%emt 0:00:03]} dxc4 {[%emt 0:00:01]} 5. e4 {[%emt 0:00:03]} b5 {[%emt 0:00:01]} (5... Bb4 {seems wilder.} 6. Bg5 c5 7. Bxc4 cxd4 8. Nxd4 Qa5) 6. e5 {[%emt 0:00:09] Inhibits a6. D24: Queen's Gambit Accepted: 3 Nf3 Nf6 4 Nc3.} Nd5 {[%emt 0:00:01]} 7. Nxb5 {[%emt 0:00:02]} Nb6 {[%emt 0:00:01]} 8. Be2 {[%emt 0:00:24] White is slightly better.} Be7 {[%emt 0:00:03]} 9. O-O {[%emt 0:00:02]} Nc6 {[%emt 0:00:02]} 10. Be3 {[%emt 0:00:18] 10.Qd2 might become the main line.} O-O {[%emt 0:00:09]} 11. Qc1 Ba6 {[%emt 0:00:33]} 12. a4 {[%emt 0:00:18]} (12. Bxc4 Nxc4 13. Qxc4 Nb4 $15) 12... Nb4 {[%emt 0:00:02] Against b3} 13. Rd1 {[%emt 0:00:37]} (13. Bxc4 $2 Nxc4 14. Qxc4 c6 $19) 13... Qd7 {[#]} 14. Bg5 $146 {[%emt 0:00:28]} (14. Bxc4 $2 Nxc4 15. Qxc4 c6 $19) (14. Nd2 {with more complications.} Nd3 15. Qb1 c6 16. Bxd3 cxd3 17. Nd6) ({Predecessor:} 14. Nd2 Nxa4 15. Nc3 Nb6 16. Nce4 Bb5 17. Nxc4 Nxc4 18. Bxc4 a6 19. Nc5 Qc6 20. b3 {0-1 (36) Peptan,C (2371)-Cramling,P (2443) Bucharest 2019}) 14... Bxg5 {[%emt 0:01:44]} (14... Rab8 $11 {deserves consideration.}) 15. Nxg5 $16 {[%emt 0:00:01]} Nxa4 {[%emt 0:00:04]} 16. Nxc7 {[%emt 0:00:36][%mdl 64] [#] Deflection} (16. Qxc4 $6 Qxb5 17. Qxb5 Bxb5 18. Bxb5 Nb6 $14) 16... Qxc7 17. Rxa4 Qe7 {[%emt 0:00:54]} 18. Ne4 $40 {[%emt 0:00:13][%mdl 128] White goes for the king. White is much more active. The black rooks are badly placed.} (18. Bxc4 Bxc4 19. Qxc4 Nd5 $14) (18. Qd2 $142 c3 19. bxc3 (19. Qxc3 $2 Bxe2 20. Re1 Rfc8 $19) 19... Bxe2 20. Qxe2) 18... Bb5 {[%emt 0:00:11]} 19. Ra3 {[%emt 0:00:04][%cal Oe4f6]} Nd3 {[%emt 0:00:06]} 20. Bxd3 {[%emt 0:00:04]} cxd3 21. Nd6 {[%emt 0:00:01]} a6 {[%emt 0:00:28]} 22. Rc3 {[%emt 0:00:01]} (22. Nxb5 {simplifies} axb5 23. Raxd3 Rfd8 24. d5) 22... Rab8 {[%emt 0:00:14]} 23. Nxb5 {[%emt 0:00:17]} (23. Rc7 {looks sharper.} Qh4 24. Qc3 Qg4 25. Rd2) 23... Rxb5 {[%emt 0:00:02]} 24. Rdxd3 {[%emt 0:00:03]} h5 {[%emt 0:00:16]} 25. h3 {[%emt 0:00:04]} f6 $2 {[%emt 0:00:22][%mdl 8192]} (25... Rd5 $16) 26. exf6 $2 {[%emt 0:00:08]} (26. Rc7 $18 Qe8 27. Rg3) 26... Qxf6 {[%emt 0:00:04]} 27. Rf3 {[%emt 0:00:05]} (27. Qe1 $142) 27... Qxd4 {[%emt 0:00:04]} 28. Rxf8+ {[%emt 0:00:03]} Kxf8 {[%emt 0:00:00][%cal Bg8f8,Bf8f7,Bf7g6][%mdl 4128] Endgame KQR-KQR} 29. Rc8+ {[%emt 0:00:25]} (29. Rf3+ $16 Rf5 30. Qc8+ Ke7 31. Rxf5 (31. Qxa6 Qxb2 32. Qa7+ Kf6 $11) (31. Re3 Qd1+ 32. Kh2 Qd6+ 33. Rg3 h4 $11) 31... exf5 32. Qxf5 (32. Qxa6 Qxb2 33. Qc4 Qe5 $11)) 29... Kf7 $11 {[%emt 0:00:02]} 30. Qc7+ {[%emt 0:00:04]} Kg6 {[%emt 0:00:03]} 31. Qc2+ {[%emt 0:00:06]} Kf7 $1 {[%emt 0:00:05]} 32. Rc7+ {[%emt 0:00:03]} Kf6 {[%emt 0:00:06]} 33. b3 {[%emt 0:00:15]} ({Not} 33. Qh7 $2 Qd1+ 34. Kh2 Qd6+ 35. g3 Qxc7 $19) 33... Re5 {[%emt 0:00:02]} 34. Rc4 {[%emt 0:00:24]} Re1+ {[%emt 0:00:15]} 35. Kh2 {[%emt 0:00:01]} Qe5+ {[%emt 0:00:07]} (35... Qd1 {feels hotter.} 36. Qc3+ Kg6 37. Rc7 Qd6+) 36. g3 {[%emt 0:00:20] Strongly threatening Rf4+.} Re2 {[%emt 0:00:15]} (36... g5 {is interesting.} 37. h4 gxh4 38. Rxh4 Re2) 37. Rf4+ {[%emt 0:00:00]} Qxf4 $1 38. Qxe2 {KQ-KQ} Qe5 {[%emt 0:00:05]} (38... Qf5 $11 {and Black has nothing to worry.}) 39. Qxa6 $18 {[%emt 0:00:04]} Qd4 {[%emt 0:00:05]} 40. Qe2 {[%emt 0:00:03]} h4 {[%emt 0:00:06]} 41. Qf3+ {[%emt 0:00:06]} Ke7 42. gxh4 {[%emt 0:00:06]} Qxh4 43. Qg3 Qd4 {[%emt 0:00:10]} 44. h4 {[%emt 0:00:06]} Kf7 {[%emt 0:00:02]} 45. h5 {[%emt 0:00:04]} e5 {[%emt 0:00:05]} 46. Kh3 {[%emt 0:00:08]} e4 {[%emt 0:00:13]} (46... Qd7+ $16 47. Kg2 Kg8) 47. Qf4+ {[%emt 0:00:09]} (47. Qc7+ $18 Kf8 48. Qc8+ Ke7 49. Qf5) 47... Kg8 $16 {[%emt 0:00:04]} 48. Kh4 {[%emt 0:00:09]} Qd8+ {[%emt 0:00:05]} 49. Kg3 Qd5 {[%emt 0:00:03] [#]} 50. h6 {[%emt 0:00:08]} (50. Qe3 $1 $16) 50... Qxb3+ $11 {[%emt 0:00:01] The position is equal.} 51. Kh4 {[%emt 0:00:03] Qg4 would kill now.} gxh6 52. Qxe4 {[%emt 0:00:03]} Qf7 {[%emt 0:00:07] Against Qg6+} 53. f4 {[%emt 0:00:04]} Kg7 {[%emt 0:00:03]} 54. Kg3 Qg6+ {[%emt 0:00:01] Black escapes into a draw.   Weighted Error Value: White=0.27 (precise) /Black=0.18 (very precise)} 1/2-1/2

[Event "1st Kallai Gabor Memorial Blitz 2022"]
[Site "Budapest"]
[Date "2022.12.01"]
[Round "6.1"]
[White "Gaal, Zsoka"]
[Black "Kozak, Adam"]
[Result "1-0"]
[ECO "A04"]
[WhiteElo "2286"]
[BlackElo "2538"]
[Annotator "TA"]
[PlyCount "112"]
[EventDate "2022.12.01"]
[EventType "blitz"]
[EventCountry "HUN"]
[SourceTitle "playchess.com"]
[Source "ChessBase"]
[SourceQuality "1"]
[TimeControl "300+3"]

{[%evp 10,112,45,43,50,57,56,59,51,41,53,65,62,57,77,58,97,41,42,14,45,33,148,132,135,130,141,132,146,90,90,0,0,-69,1,-286,-285,-289,-285,-481,-469,-515,-509,-516,-295,-609,-477,-487,-508,-621,-625,-602,-597,-678,-556,-772,-761,-1182,-1068,-1311,-1290,-1334,-1314,-1885,-1879,-1563,-1393,-6014,-4681,-29971,-5497,-5173,-5029,-4925,-4554,-2333,-1864,-5514,-5610,-5435,-5133,-29982,-29980,-29983,-29984,-29984,-29977,-29974,-29973,-29989,-29990,-29990,-29991,-29991,-29991,-29991,-29992,-29993,-29992,-29992,-29991,-29992,-29992,-29995,-29996]} 1. Nf3 {[%emt 0:00:04]} c5 {[%emt 0:00:09]} 2. c4 {[%emt 0:00:02]} Nc6 {[%emt 0:00:04]} 3. Nc3 {[%emt 0:00:01]} g6 {[%emt 0:00:02]} 4. e3 {[%emt 0:00:03]} Bg7 {[%emt 0:00:02]} 5. d4 {[%emt 0:00:02]} d6 {[%emt 0:00:01]} 6. d5 {[%emt 0:00:08]} Bxc3+ {[%emt 0:00:08] A35: Symmetrical English: 2 Nc3 Nc6 3 Nf3.} 7. bxc3 {[%emt 0:00:04]} Na5 {[%emt 0:00:01]} 8. Bd3 {[%emt 0:00:43]} e5 {[%emt 0:00:11] White is slightly better.} 9. e4 {[%emt 0:00:31] [#]} Nf6 $146 {[%emt 0:01:20]} ({Predecessor:} 9... h6 10. O-O Ne7 11. Ne1 g5 12. Nc2 Ng6 13. g3 Bd7 14. Ne3 Qf6 15. Nf5 O-O-O {½-½ (61) Potapov,A (2490)-Timofeev,A (2522) Elista 2001}) 10. Bh6 {[%emt 0:01:04]} Bd7 {[%emt 0:00:17]} 11. h3 {[%emt 0:00:43]} Qe7 {[%emt 0:01:27]} 12. Qc1 {[%emt 0:00:04]} O-O-O {[%emt 0:00:43]} 13. Qg5 {[%emt 0:00:06]} (13. Nd2 $16) 13... Rhe8 $1 $14 {[%emt 0:00:29]} 14. O-O {[%emt 0:01:21]} b6 {[%emt 0:00:10]} 15. Nd2 {[%emt 0:00:08]} Kc7 {[%emt 0:00:21]} ({Black should try} 15... Nh5 $14) 16. f4 $1 $16 {[%emt 0:00:19]} Ng8 {[%emt 0:00:14] White must now prevent ...f6.} 17. fxe5 {[%emt 0:00:17]} Qxe5 {[%emt 0:00:02]} 18. Qxe5 {[%emt 0:00:03]} (18. Rxf7 $2 Qxc3 19. Bg7 Qxd3 $19) 18... Rxe5 {[%emt 0:00:01]} 19. Bg7 {[%emt 0:00:02]} (19. Bf4 $142 Re7 20. Bg5) 19... Re7 {[%emt 0:00:02][%cal Of7f5]} 20. e5 ({White should play} 20. Bf6 $1 $16 {[%cal Rf6e7]} Nxf6 21. Rxf6) 20... dxe5 $11 {[%emt 0:00:13]} 21. Ne4 {[%emt 0:00:03]} (21. Rae1 $11) 21... Bf5 {[%emt 0:00:04] [#]} ({Better is} 21... Nb7 $1 $15 22. Nf6 e4) 22. d6+ $2 {[%emt 0:00:07][%mdl 8192] This costs White the game.} (22. Rxf5 $1 $11 {and White is okay.} gxf5 23. d6+ Kd7 24. dxe7 Kxe7 25. Nf2) 22... Rxd6 $1 $19 {[%emt 0:00:01]} 23. Nxd6 {[%emt 0:00:02]} Bxd3 {[%emt 0:00:01]} 24. Rfd1 {[%emt 0:00:02]} (24. Nxf7 Bxf1 25. Rxf1) 24... e4 {[%emt 0:00:07]} ({Not} 24... Bxc4 25. Bf8 $17) (24... Nxc4 25. Nb5+ Kc6 26. Rxd3 $16) 25. Nb5+ {[%emt 0:00:07]} Kc6 {[%emt 0:00:03]} 26. Bf8 {[%emt 0:00:09]} Re8 {[%emt 0:00:01]} 27. Bd6 $2 {[%emt 0:00:02]} (27. Bg7) 27... a6 {[%emt 0:00:05]} 28. Nc7 {[%emt 0:00:04]} Rc8 {[%emt 0:00:01]} 29. Bg3 {[%emt 0:00:03]} Rxc7 {[%emt 0:00:02]} 30. Bxc7 {[%emt 0:00:01]} Kxc7 {[%emt 0:00:00]} 31. Kf2 {[%emt 0:00:03]} f5 {[%emt 0:00:03][%cal Bf7f5,Bf5f4][%mdl 32]} 32. g4 {[%emt 0:00:01]} f4 {[%emt 0:00:02]} 33. g5 {[%emt 0:00:05]} Nxc4 {[%emt 0:00:03]} 34. h4 {[%emt 0:00:04]} Ne7 {[%emt 0:00:04]} 35. h5 {[%emt 0:00:04]} Nd5 {[%emt 0:00:08]} 36. hxg6 hxg6 {[%emt 0:00:01]} (36... Nxc3 $2 37. Rxd3 $1 {[%mdl 512]} e3+ 38. Ke1 $18) 37. Rh1 {[%emt 0:00:04]} Kd6 {[%emt 0:00:06] Strongly threatening ...e3+.} 38. Rad1 {[%emt 0:00:03]} e3+ {[%emt 0:00:03]} 39. Ke1 {[%emt 0:00:06]} Nd2 {[%emt 0:00:02]} (39... Ne5 $142 40. Rh3 Nxc3 41. Rd2 exd2+ 42. Kxd2 Ne4+ 43. Kc1 f3 44. Rh7 f2 45. Rh1 Nc4 46. Rd1 {[#]} Ke7 $1 47. Rxd3 f1=Q+ 48. Rd1 Qf2 49. Rd8 Qb2+ 50. Kd1 Ne3+ 51. Ke1 Qf2#) 40. Rxd2 {[%emt 0:00:02]} exd2+ {[%emt 0:00:02]} 41. Kxd2 {[%emt 0:00:00]} c4 {[%emt 0:00:04]} 42. Rh8 {[%emt 0:00:03]} Ke7 {[%emt 0:00:04] ...a5 is the strong threat.} 43. Rh7+ {[%emt 0:00:05]} Ke6 {[%emt 0:00:01]} 44. a4 {[%emt 0:00:04]} a5 {[%emt 0:00:01] ( -> ...Kf5)} 45. Rb7 {[%emt 0:00:01]} Ke5 {[%emt 0:00:04] Black mates.} 46. Rd7 {[%emt 0:00:02]} f3 {[%emt 0:00:05]} 47. Rf7 {[%emt 0:00:02]} Ke4 {[%emt 0:00:04]} 48. Rf8 {[%emt 0:00:08]} Nf4 {[%emt 0:00:02]} 49. Ke1 {[%emt 0:00:02]} Ke3 {[%emt 0:00:03]} 50. Re8+ {[%emt 0:00:03]} Be4 {[%emt 0:00:01]} 51. Kf1 {[%emt 0:00:00]} Nd5 {[%emt 0:00:05]} 52. Re5 {[%emt 0:00:05]} Nxc3 {[%emt 0:00:02]} 53. Ke1 {[%emt 0:00:04]} Nxa4 {[%emt 0:00:01]} 54. Re6 {[%emt 0:00:02]} b5 {[%emt 0:00:03]} 55. Kd1 {[%emt 0:00:04]} f2 {[%emt 0:00:04][%cal Rf2f1]} 56. Rf6 {[%emt 0:00:01]} Bf5 {[%emt 0:00:06][%mdl 32768] Weighted Error Value: White=1.32/Black=0.43. Loss on time!?} 1-0

[Event "1st Kallai Gabor Memorial Blitz 2022"]
[Site "Budapest"]
[Date "2022.12.01"]
[Round "6.2"]
[White "Beliavsky, Alexander G"]
[Black "Motylev, Alexander"]
[Result "1/2-1/2"]
[ECO "D43"]
[WhiteElo "2487"]
[BlackElo "2628"]
[Annotator "TA"]
[PlyCount "39"]
[EventDate "2022.12.01"]
[EventType "blitz"]
[EventCountry "HUN"]
[SourceTitle "playchess.com"]
[Source "ChessBase"]
[SourceQuality "1"]
[TimeControl "300+3"]

{[%evp 21,24,-12,0,-8,-3]} 1. d4 {[%emt 0:00:04]} d5 {[%emt 0:00:05]} 2. c4 {[%emt 0:00:02]} c6 {[%emt 0:00:01]} 3. Nf3 {[%emt 0:00:02]} Nf6 {[%emt 0:00:01]} 4. Nc3 {[%emt 0:00:02]} e6 {[%emt 0:00:02]} 5. cxd5 {[%emt 0:00:13]} exd5 {[%emt 0:00:03]} 6. Bg5 {[%emt 0:00:04]} Be7 {[%emt 0:00:24]} 7. e3 {[%emt 0:00:02]} Bf5 {[%emt 0:00:02]} 8. Bd3 {[%emt 0:00:11]} Bxd3 {[%emt 0:00:04]} 9. Qxd3 {[%emt 0:00:01]} Nbd7 {[%emt 0:00:06]} 10. O-O {[%emt 0:00:08]} O-O {[%emt 0:00:01]} 11. a3 {[%emt 0:00:47]} a5 12. Rac1 {[%emt 0:00:10] D35: Queen's Gambit Declined: Exchange Variation.} Ne4 {[%emt 0:00:22] [#] Not much happened in this game.} {Predecessor:} 13. Bxe7 $146 Qxe7 14. Qc2 f5 15. Na4 f4 16. exf4 Rxf4 17. Rce1 Qf6 18. Nc3 Qg6 19. Ne5 Nxe5 20. dxe5 {½-½ (32) Munte,N (1650)-Martinez,A (1881) Riga 2018} 1/2-1/2

[Event "1st Kallai Gabor Memorial Blitz 2022"]
[Site "Budapest"]
[Date "2022.12.01"]
[Round "6.3"]
[White "Troff, Kayden"]
[Black "Bjerre, Jonas Buhl"]
[Result "1-0"]
[ECO "D02"]
[WhiteElo "2483"]
[BlackElo "2622"]
[Annotator "TA"]
[PlyCount "120"]
[EventDate "2022.12.01"]
[EventType "blitz"]
[EventCountry "HUN"]
[SourceTitle "playchess.com"]
[Source "ChessBase"]
[SourceQuality "1"]
[TimeControl "300+3"]

{[%evp 9,120,-17,-19,-10,-21,-22,-19,-31,-15,-4,-8,-5,-6,-36,-29,-27,0,-58,-5,-22,-25,-18,-12,-30,-29,-44,-52,-104,-36,-46,-46,-95,-104,-99,-97,-89,-95,-141,-131,-199,-189,-277,-204,-209,-122,-119,0,0,0,0,0,0,0,0,0,0,0,-23,166,64,60,52,265,54,68,0,0,0,10,0,98,96,105,0,0,0,102,116,295,297,300,263,263,95,97,95,112,8,8,7,9,11,23,0,0,0,22,20,427,429,704,586,709,674,29980,29981,29989,29988,29988,0,29989,29975,29993]} 1. d4 {[%emt 0:00:04]} Nf6 {[%emt 0:00:04]} 2. Nf3 {[%emt 0:00:02]} d5 {[%emt 0:00:01]} 3. Bf4 {[%emt 0:00:02]} c5 {[%emt 0:00:02]} 4. e3 {[%emt 0:00:02]} Nc6 {[%emt 0:00:01]} 5. Nc3 {[%emt 0:00:05]} Bg4 {[%emt 0:00:07]} 6. Be2 {[%emt 0:00:07] D02: 1 d4 d5 2 Nf3 sidelines, including 2...Nf6 3 g3 and 2...Nf6 3 Bf4.} e6 {[%emt 0:00:07]} 7. Ne5 {[%emt 0:00:50]} Bxe2 {[%emt 0:00:05]} (7... Nxe5 {simplifies} 8. Bxe5 Bxe2 9. Nxe2 a6) 8. Nxe2 {[%emt 0:00:02] The position is equal.} Bd6 {[%emt 0:00:39] [#]} 9. Nxc6 $146 {[%emt 0:00:27]} ({Predecessor:} 9. O-O O-O 10. c4 cxd4 11. exd4 Qc7 12. Nc3 Nxe5 13. dxe5 Bxe5 14. Bxe5 Qxe5 15. Re1 {½-½ (26) Pezerovic,E (2439)-Fedorovsky,M (2385) Munich 2013}) 9... bxc6 {[%emt 0:00:02]} 10. O-O {[%emt 0:00:05]} O-O {[%emt 0:00:03]} 11. b3 {[%emt 0:00:14]} a5 {[%emt 0:00:11]} 12. c4 {[%emt 0:00:04]} cxd4 {[%emt 0:00:41]} 13. exd4 {[%emt 0:00:33]} ({White should play} 13. Qxd4 $11 c5 14. Qd3) 13... a4 {[%emt 0:00:03]} (13... Bxf4 $15 14. Nxf4 a4) 14. Bxd6 $11 {[%emt 0:00:30]} Qxd6 {[%emt 0:00:01]} 15. c5 {[%emt 0:00:01]} Qb8 {[%emt 0:00:03]} 16. bxa4 {[%emt 0:00:05]} Qb4 {[%emt 0:00:24]} 17. Rb1 {[%emt 0:00:02]} Qc4 {[%emt 0:00:30]} 18. Rb6 {[%emt 0:00:39]} (18. Rb3 $15) 18... Rfc8 {[%emt 0:00:01]} (18... Rxa4 $17 19. a3 Rxa3) 19. Qd2 $15 {[%emt 0:00:14]} Rxa4 {[%emt 0:00:14]} 20. Rc1 {[%emt 0:00:34]} (20. Rb3 $15 {might be stronger.}) 20... Rxa2 $17 {[%emt 0:00:16]} ({But not} 20... Qxa2 $6 21. Rc2 Qa3 22. Rc3 Qa1+ 23. Rc1 $11) 21. Rb2 {[%emt 0:00:07]} Rxb2 {[%emt 0:00:13]} 22. Qxb2 {[%emt 0:00:03]} Qd3 $1 {[%emt 0:00:04]} 23. Ng3 {[%emt 0:00:25]} (23. Kf1 $142) 23... h5 {[%emt 0:00:11]} 24. Qb7 {[%emt 0:00:01] Inhibits Ra8.} (24. Ra1 $17 {might work better.}) 24... Rf8 $19 {[%emt 0:00:09]} 25. Qxc6 {[%emt 0:00:03]} (25. Qb2 $142) 25... Qxd4 {[%emt 0:00:05]} 26. Qb5 {[%emt 0:00:10]} h4 {[%emt 0:00:05]} (26... Ng4 $19 27. Qf1 h4) 27. Ne2 $17 {[%emt 0:00:01]} Qe4 {[%emt 0:00:38]} (27... Qe5 $17 {And now ...Ng4 would win.} 28. h3 Rb8) 28. c6 $11 {[%emt 0:00:21]} h3 {[%emt 0:00:02]} 29. gxh3 {[%emt 0:00:01]} Ne8 {[%emt 0:00:53]} 30. c7 {[%emt 0:00:16]} Nd6 {[%emt 0:00:01] Prevents c8Q.} 31. Qa6 {[%emt 0:00:05]} Nc8 {[%emt 0:00:00]} 32. Ng3 {[%emt 0:00:06]} Qf4 {[%emt 0:00:01]} 33. Qc6 {[%emt 0:00:04]} d4 $2 {[%emt 0:00:02]} (33... Qd6 $11) 34. Rd1 {[%emt 0:00:05]} ({Better is} 34. Rc4 $1 $18) 34... e5 $14 {[%emt 0:00:11]} 35. Qd7 {[%emt 0:00:02]} Qf3 $2 {[%emt 0:00:05]} (35... Qh6 $14) 36. Re1 $2 {[%emt 0:00:08] Active counter play!} (36. Rb1 $1 $18 {[%cal Rb1b8]} Qa3 37. Rb8) 36... Qf6 $1 {[%emt 0:00:11]} 37. Qd5 {[%emt 0:00:06]} (37. Qb5 $14) 37... Re8 $11 {[%emt 0:00:06]} 38. Rb1 {[%emt 0:00:02]} Qe7 {[%emt 0:00:04]} 39. Qc6 {[%emt 0:00:01]} e4 {[%emt 0:00:01] [#]} (39... Na7 $11 40. Qa4 Nc8) 40. Nf5 $1 $16 {[%emt 0:00:03][%csl LRd4,LRe7]} Qg5+ {[%emt 0:00:03]} 41. Ng3 {[%emt 0:00:02]} (41. Kh1 $16 Re6 42. Qd5) 41... Qe7 $11 {[%emt 0:00:03]} 42. Nf5 {[%emt 0:00:02]} ({White should try} 42. h4 $11 d3 43. Nf5) 42... Qg5+ $16 {[%emt 0:00:06]} 43. Kh1 {[%emt 0:00:02]} Rf8 {[%emt 0:00:01]} (43... Re5 $16 {keeps fighting.} 44. Nxd4 Kh7) 44. Qxe4 $18 {[%emt 0:00:01]} ({Weaker is} 44. Nxd4 Qe5 $16) 44... g6 {[%emt 0:00:06]} 45. Rg1 {[%emt 0:00:02]} Qf6 {[%emt 0:00:04]} 46. Nh6+ $2 {[%emt 0:00:04]} ({Worse is} 46. Qxd4 Qxf5 47. Re1 Qxh3 $17) (46. Nxd4 $18 {has better winning chances. Black must now prevent h4.} Nd6 47. Qd5) 46... Kh7 $16 {...Nd6 is the strong threat.} 47. Ng4 Qd6 {[%emt 0:00:03] [#] Strongly threatening ...f5.} 48. Ne5 {[%emt 0:00:09]} ({White has to play} 48. Rd1 $1 $16) 48... Re8 $132 {[%emt 0:00:06][%mdl 2048] Black is not holding back} 49. Qh4+ {[%emt 0:00:02]} Kg7 {[%emt 0:00:00]} 50. Nf3 {[%emt 0:00:02]} d3 {[%emt 0:00:07]} 51. Ng5 {[%emt 0:00:05] White threatens Qh7+ and mate.} Qd5+ {[%emt 0:00:05]} 52. f3 {[%emt 0:00:01] Threatens to win with Qh7+. The board is on fire.} Rh8 {[%emt 0:00:03] Inhibits Qh7+.} 53. Qf4 {[%emt 0:00:02] aiming for Rd1.} d2 $2 {[%emt 0:00:02][%mdl 8192]} (53... Nd6 $11 {and Black is okay.}) 54. Rd1 $18 {[%emt 0:00:01]} Re8 {[%emt 0:00:07]} (54... Rh5 $142) 55. Rxd2 {[%emt 0:00:02]} Qb3 {[%emt 0:00:05]} 56. Kg2 {[%emt 0:00:04]} Re1 {[%emt 0:00:05]} 57. Qd4+ {[%emt 0:00:01]} Kh6 {[%emt 0:00:02]} 58. Qh4+ {[%emt 0:00:07]} Kg7 {[%emt 0:00:01]} 59. Qd4+ {[%emt 0:00:03]} Kh6 $1 {[%emt 0:00:04]} 60. h4 {[%emt 0:00:01][%cal Rd4h8]} f6 {A wild game.   Weighted Error Value: White=0.39/Black=0.47} 1-0